[Event "*** Titled Tuesday Blitz"]
[Site "Chess.com"]
[Date "2021.04.27"]
[Round "10"]
[White "The_filthy"]
[Black "anon569"]
[Result "1-0"]
[WhiteElo "2407"]
[BlackElo "2253"]
[TimeControl "180+1"]
[EndTime "11:53:35 PDT"]
[Termination "The_filthy won by resignation"]

1. e4 {[%clk 0:03:00.9]} 1... c5 {[%clk 0:02:53.8]} 2. Nf3 {[%clk 0:03:01.1]}
2... d6 {[%clk 0:02:45]} 3. d4 {[%clk 0:03:00.9]} 3... cxd4 {[%clk 0:02:45.9]}
4. Nxd4 {[%clk 0:03:01.6]} 4... Nf6 {[%clk 0:02:46.2]} 5. Nc3 {[%clk 0:03:01.5]}
5... a6 {[%clk 0:02:46.7]} 6. Be3 {[%clk 0:03:01.6]} 6... e6 {[%clk 0:02:46.2]}
7. f3 {[%clk 0:03:00.5]} 7... Qc7 {[%clk 0:02:45.9]} 8. Qd2 {[%clk 0:02:50.8]}
8... b5 {[%clk 0:02:45.1]} 9. O-O-O {[%clk 0:02:48.8]} 9... Bb7 {[%clk
0:02:42.6]} 10. g4 {[%clk 0:02:38.4]} 10... Be7 {[%clk 0:02:41.4]} 11. h4 {[%clk
0:02:36.5]} 11... Nfd7 {[%clk 0:02:37.1]} 12. Bd3 {[%clk 0:02:34.2]} 12... Ne5
{[%clk 0:02:31]} 13. Kb1 {[%clk 0:02:26.5]} 13... Nbd7 {[%clk 0:02:29.3]} 14. h5
{[%clk 0:02:25.7]} 14... Nb6 {[%clk 0:02:23.3]} 15. b3 {[%clk 0:02:06.4]} 15...
Rc8 {[%clk 0:01:57.2]} 16. Nce2 {[%clk 0:02:04.4]} 16... Nec4 {[%clk 0:01:06.2]}
17. Qc1 {[%clk 0:02:02.9]} 17... Nxe3 {[%clk 0:01:02.3]} 18. Qxe3 {[%clk
0:02:02.9]} 18... d5 {[%clk 0:00:33.9]} 19. e5 {[%clk 0:01:59]} 19... Nc4 {[%clk
0:00:24.7]} 20. Bxc4 {[%clk 0:01:58.2]} 20... bxc4 {[%clk 0:00:23.5]} 21. g5
{[%clk 0:01:47.9]} 21... Qb6 {[%clk 0:00:14.6]} 22. g6 {[%clk 0:01:45.7]} 22...
Kd7 {[%clk 0:00:14.9]} 23. gxf7 {[%clk 0:01:44.8]} 23... Rcf8 {[%clk 0:00:14.8]}
24. f4 {[%clk 0:01:24.4]} 24... Bc5 {[%clk 0:00:10.6]} 25. f5 {[%clk 0:01:21.5]}
25... Rxf7 {[%clk 0:00:10.4]} 26. fxe6+ {[%clk 0:01:21.5]} 26... Qxe6 {[%clk
0:00:09.6]} 27. Nxe6 {[%clk 0:01:12]} 27... Bxe3 {[%clk 0:00:09.4]} 28. N6d4
{[%clk 0:01:12]} 28... Re7 {[%clk 0:00:09.2]} 29. e6+ {[%clk 0:01:09.3]} 29...
Kc7 {[%clk 0:00:07.4]} 30. Rh3 {[%clk 0:01:03]} 30... Bg5 {[%clk 0:00:07.2]} 31.
Rf3 {[%clk 0:00:58.1]} 31... h6 {[%clk 0:00:07]} 32. Rdf1 {[%clk 0:00:53.9]}
32... Rhe8 {[%clk 0:00:06]} 33. Rf7 {[%clk 0:00:49.5]} 33... Bc8 {[%clk
0:00:05.7]} 34. Nc3 {[%clk 0:00:44.2]} 34... Kd8 {[%clk 0:00:03.6]} 35. Nc6+
{[%clk 0:00:37.7]} 35... Kc7 {[%clk 0:00:03.3]} 36. Nxe7 {[%clk 0:00:37.2]}
36... Bxe7 {[%clk 0:00:02.6]} 37. Nxd5+ {[%clk 0:00:35.7]} 37... Kd6 {[%clk
0:00:02.7]} 38. Rxe7 {[%clk 0:00:34.1]} 38... Rxe7 {[%clk 0:00:03.6]} 39. Nxe7
{[%clk 0:00:34.5]} 39... Kxe7 {[%clk 0:00:04.5]} 40. Rf7+ {[%clk 0:00:34.5]}
40... Kxe6 {[%clk 0:00:05.4]} 41. Rxg7 {[%clk 0:00:34.6]} 41... cxb3 {[%clk
0:00:04.6]} 42. axb3 {[%clk 0:00:32.1]} 1-0

[Event "*** Titled Tuesday Blitz"]
[Site "Chess.com"]
[Date "2021.04.27"]
[Round "10"]
[White "Rsnr"]
[Black "Cptn2"]
[Result "1-0"]
[WhiteElo "2761"]
[BlackElo "2604"]
[TimeControl "180+1"]
[EndTime "11:53:36 PDT"]
[Termination "Rsnr won by resignation"]

1. d4 {[%clk 0:03:00.9]} 1... Nf6 {[%clk 0:02:55.9]} 2. c4 {[%clk 0:03:01.4]}
2... b6 {[%clk 0:02:53.9]} 3. Nf3 {[%clk 0:02:55.1]} 3... Bb7 {[%clk 0:02:53.5]}
4. Nc3 {[%clk 0:02:55.7]} 4... d5 {[%clk 0:02:51.6]} 5. a3 {[%clk 0:02:54]} 5...
e6 {[%clk 0:02:45.8]} 6. Bg5 {[%clk 0:02:53.4]} 6... Be7 {[%clk 0:02:46]} 7.
Qa4+ {[%clk 0:02:53.8]} 7... Nbd7 {[%clk 0:02:41.1]} 8. Bxf6 {[%clk 0:02:53.9]}
8... Bxf6 {[%clk 0:02:36.6]} 9. cxd5 {[%clk 0:02:54.8]} 9... exd5 {[%clk
0:02:37.4]} 10. g3 {[%clk 0:02:55.6]} 10... O-O {[%clk 0:02:29]} 11. Bh3 {[%clk
0:02:56.1]} 11... c5 {[%clk 0:02:29.7]} 12. Qxd7 {[%clk 0:02:55.5]} 12... Qxd7
{[%clk 0:02:21.3]} 13. Bxd7 {[%clk 0:02:56.4]} 13... cxd4 {[%clk 0:02:22.2]} 14.
Nb5 {[%clk 0:02:51.5]} 14... d3 {[%clk 0:02:19.8]} 15. Nbd4 {[%clk 0:02:50.8]}
15... Rfd8 {[%clk 0:02:12.7]} 16. Bf5 {[%clk 0:02:50.8]} 16... dxe2 {[%clk
0:02:07.6]} 17. Kxe2 {[%clk 0:02:51.7]} 17... g6 {[%clk 0:02:07.5]} 18. Bd3
{[%clk 0:02:51.6]} 18... Bc8 {[%clk 0:02:01.6]} 19. h3 {[%clk 0:02:49.1]} 19...
Re8+ {[%clk 0:01:52.9]} 20. Kd2 {[%clk 0:02:49.2]} 20... Re4 {[%clk 0:01:53.8]}
21. Nb5 {[%clk 0:02:37.3]} 21... Bd7 {[%clk 0:01:38.2]} 22. Nc7 {[%clk
0:02:27.7]} 22... Rd8 {[%clk 0:01:35.2]} 23. Nxd5 {[%clk 0:02:27.5]} 23... Re6
{[%clk 0:01:29.1]} 24. Nxf6+ {[%clk 0:01:57.2]} 24... Rxf6 {[%clk 0:01:27]} 25.
Ne5 {[%clk 0:01:57.9]} 25... Rxf2+ {[%clk 0:01:20.9]} 26. Ke3 {[%clk 0:01:58]}
26... Rxb2 {[%clk 0:01:13.6]} 27. Bc4 {[%clk 0:01:57.6]} 27... Be6 {[%clk
0:01:02.8]} 28. Bxe6 {[%clk 0:01:56.7]} 28... fxe6 {[%clk 0:01:03.7]} 29. Rhd1
{[%clk 0:01:56.2]} 29... Rb3+ {[%clk 0:00:57.2]} 30. Rd3 {[%clk 0:01:56.6]}
30... Rdxd3+ {[%clk 0:00:57.5]} 31. Nxd3 {[%clk 0:01:57.5]} 31... Kf8 {[%clk
0:00:58.4]} 32. a4 {[%clk 0:01:57]} 32... Ke7 {[%clk 0:00:56.7]} 33. Kd4 {[%clk
0:01:56.6]} 33... Kd6 {[%clk 0:00:45.1]} 34. a5 {[%clk 0:01:57]} 34... b5 {[%clk
0:00:40.3]} 35. a6 {[%clk 0:01:57.5]} 35... e5+ {[%clk 0:00:36.8]} 36. Ke4
{[%clk 0:01:57]} 36... Rc3 {[%clk 0:00:35.3]} 37. Rf1 {[%clk 0:01:47.3]} 37...
Rc4+ {[%clk 0:00:32.2]} 38. Ke3 {[%clk 0:01:47.8]} 38... e4 {[%clk 0:00:31.6]}
39. Nf2 {[%clk 0:01:38]} 39... Rc3+ {[%clk 0:00:30.7]} 40. Kd4 {[%clk
0:01:36.7]} 40... Rc4+ {[%clk 0:00:27.6]} 41. Ke3 {[%clk 0:01:37.3]} 41... Rc3+
{[%clk 0:00:28.5]} 42. Kf4 {[%clk 0:01:38]} 42... Rf3+ {[%clk 0:00:22.6]} 43.
Kxe4 {[%clk 0:01:38.6]} 43... Rxg3 {[%clk 0:00:23.2]} 44. Rd1+ {[%clk
0:01:28.4]} 44... Kc6 {[%clk 0:00:23.1]} 45. Ke5 {[%clk 0:01:28.4]} 45... Rf3
{[%clk 0:00:20.5]} 46. Rd6+ {[%clk 0:01:25.7]} 46... Kc7 {[%clk 0:00:20.8]} 47.
Ne4 {[%clk 0:01:25.8]} 47... Rxh3 {[%clk 0:00:21.1]} 48. Rf6 {[%clk 0:01:21.5]}
48... Rh5+ {[%clk 0:00:21]} 49. Kd4 {[%clk 0:01:20.7]} 49... Rf5 {[%clk
0:00:18.8]} 50. Re6 {[%clk 0:01:21.1]} 50... h5 {[%clk 0:00:16.8]} 51. Rxg6
{[%clk 0:01:20.6]} 51... b4 {[%clk 0:00:16]} 52. Nc5 {[%clk 0:01:10.2]} 52...
Rf4+ {[%clk 0:00:16.4]} 53. Kd5 {[%clk 0:01:10.8]} 53... Rf5+ {[%clk 0:00:16.3]}
54. Kc4 {[%clk 0:01:11.3]} 54... Rf4+ {[%clk 0:00:16.2]} 55. Kb5 {[%clk
0:01:11.8]} 55... h4 {[%clk 0:00:13.9]} 56. Rh6 {[%clk 0:01:12.2]} 56... Kb8
{[%clk 0:00:13.2]} 57. Kc6 {[%clk 0:01:09.7]} 57... Rf8 {[%clk 0:00:12.5]} 58.
Nd7+ {[%clk 0:01:10.1]} 1-0

[Event "*** Titled Tuesday Blitz"]
[Site "Chess.com"]
[Date "2021.04.27"]
[Round "10"]
[White "AldokhinIvan"]
[Black "ChadBiryani"]
[Result "0-1"]
[WhiteElo "2524"]
[BlackElo "2358"]
[TimeControl "180+1"]
[EndTime "11:53:36 PDT"]
[Termination "ChadBiryani won by resignation"]

1. e4 {[%clk 0:03:00.9]} 1... c5 {[%clk 0:02:58.4]} 2. Nf3 {[%clk 0:03:00.8]}
2... d6 {[%clk 0:02:58.8]} 3. d4 {[%clk 0:03:01.2]} 3... cxd4 {[%clk 0:02:59]}
4. Nxd4 {[%clk 0:03:02.1]} 4... Nf6 {[%clk 0:02:59.6]} 5. Nc3 {[%clk 0:03:02.4]}
5... g6 {[%clk 0:03:00.3]} 6. Bc4 {[%clk 0:03:02]} 6... Bg7 {[%clk 0:03:00.6]}
7. Bb3 {[%clk 0:03:02.5]} 7... O-O {[%clk 0:03:00.8]} 8. h3 {[%clk 0:03:00.7]}
8... Nc6 {[%clk 0:03:00.7]} 9. Be3 {[%clk 0:03:00.8]} 9... Nxd4 {[%clk
0:02:53.8]} 10. Bxd4 {[%clk 0:03:00.6]} 10... Be6 {[%clk 0:02:54.4]} 11. O-O
{[%clk 0:02:57.5]} 11... a6 {[%clk 0:02:53.4]} 12. Re1 {[%clk 0:02:54.1]} 12...
Bxb3 {[%clk 0:02:52]} 13. axb3 {[%clk 0:02:54]} 13... Nd7 {[%clk 0:02:51.3]} 14.
Bxg7 {[%clk 0:02:53.2]} 14... Kxg7 {[%clk 0:02:51.3]} 15. Qd4+ {[%clk
0:02:51.6]} 15... Kg8 {[%clk 0:02:51.3]} 16. Rad1 {[%clk 0:02:51.7]} 16... Rc8
{[%clk 0:02:50.8]} 17. Kh1 {[%clk 0:02:51.1]} 17... Re8 {[%clk 0:02:44.5]} 18.
f4 {[%clk 0:02:42.6]} 18... Qa5 {[%clk 0:02:37.8]} 19. Re2 {[%clk 0:02:37.8]}
19... Qh5 {[%clk 0:02:37.3]} 20. Rdd2 {[%clk 0:02:33.6]} 20... Nc5 {[%clk
0:02:36.9]} 21. Nd5 {[%clk 0:02:30.5]} 21... Qh4 {[%clk 0:02:21.9]} 22. Kh2
{[%clk 0:02:16.2]} 22... Ne6 {[%clk 0:02:10.2]} 23. Qe3 {[%clk 0:02:11.7]} 23...
Rc6 {[%clk 0:02:02.1]} 24. Rf2 {[%clk 0:02:05.2]} 24... Nc5 {[%clk 0:01:51]} 25.
g3 {[%clk 0:02:04.9]} 25... Qh5 {[%clk 0:01:48]} 26. f5 {[%clk 0:02:04.6]} 26...
Nd7 {[%clk 0:01:41.2]} 27. Rf4 {[%clk 0:01:55.7]} 27... Ne5 {[%clk 0:01:38.4]}
28. f6 {[%clk 0:01:47.4]} 28... g5 {[%clk 0:01:21.1]} 29. fxe7 {[%clk
0:00:27.1]} 29... gxf4 {[%clk 0:01:19.3]} 30. Qxf4 {[%clk 0:00:25.8]} 30... Nd7
{[%clk 0:00:54]} 31. Rf2 {[%clk 0:00:19.4]} 31... Qg6 {[%clk 0:00:48.8]} 32. c4
{[%clk 0:00:16]} 32... b5 {[%clk 0:00:48]} 33. Qe3 {[%clk 0:00:12.8]} 33... Kg7
{[%clk 0:00:38.3]} 34. Rf4 {[%clk 0:00:12.4]} 34... Ne5 {[%clk 0:00:37.1]} 35.
Rf6 {[%clk 0:00:09.3]} 35... Qh5 {[%clk 0:00:29.4]} 36. Rf5 {[%clk 0:00:06.9]}
36... Ng4+ {[%clk 0:00:27.7]} 37. Kg1 {[%clk 0:00:04.6]} 37... Nxe3 {[%clk
0:00:26.5]} 38. Rxh5 {[%clk 0:00:04.8]} 38... Nxd5 {[%clk 0:00:24.2]} 39. exd5
{[%clk 0:00:05.5]} 39... Rc7 {[%clk 0:00:23.3]} 40. Rg5+ {[%clk 0:00:05.6]}
40... Kf6 {[%clk 0:00:22.6]} 0-1

[Event "*** Titled Tuesday Blitz"]
[Site "Chess.com"]
[Date "2021.04.27"]
[Round "10"]
[White "tylityli"]
[Black "RafalBRC"]
[Result "0-1"]
[WhiteElo "2317"]
[BlackElo "2198"]
[TimeControl "180+1"]
[EndTime "11:53:39 PDT"]
[Termination "RafalBRC won on time"]

1. d4 {[%clk 0:03:00.9]} 1... Nf6 {[%clk 0:02:59.5]} 2. c4 {[%clk 0:03:00.7]}
2... e6 {[%clk 0:02:59.4]} 3. Nc3 {[%clk 0:02:59.6]} 3... Bb4 {[%clk 0:03:00]}
4. e3 {[%clk 0:02:59.2]} 4... O-O {[%clk 0:02:59.9]} 5. Ne2 {[%clk 0:02:58]}
5... c5 {[%clk 0:02:59.6]} 6. d5 {[%clk 0:02:57.1]} 6... exd5 {[%clk 0:02:59.5]}
7. cxd5 {[%clk 0:02:58]} 7... d6 {[%clk 0:02:50.9]} 8. g3 {[%clk 0:02:53]} 8...
Bg4 {[%clk 0:02:45.7]} 9. Bg2 {[%clk 0:02:51.3]} 9... Nbd7 {[%clk 0:02:29.3]}
10. O-O {[%clk 0:02:49.9]} 10... Ne5 {[%clk 0:02:24.8]} 11. f3 {[%clk
0:02:47.7]} 11... Bh5 {[%clk 0:02:25.3]} 12. Nf4 {[%clk 0:02:39.6]} 12... Bg6
{[%clk 0:02:18.8]} 13. e4 {[%clk 0:02:38.5]} 13... c4 {[%clk 0:02:11.8]} 14. Be3
{[%clk 0:02:35.9]} 14... a6 {[%clk 0:02:04.2]} 15. a3 {[%clk 0:02:30.4]} 15...
Ba5 {[%clk 0:02:03.2]} 16. a4 {[%clk 0:02:26.2]} 16... Nfd7 {[%clk 0:02:01.3]}
17. Bd4 {[%clk 0:02:19.3]} 17... Bb6 {[%clk 0:01:55.3]} 18. Kh1 {[%clk
0:02:14.6]} 18... Nc5 {[%clk 0:01:51]} 19. Bxe5 {[%clk 0:02:09]} 19... dxe5
{[%clk 0:01:51.9]} 20. Nxg6 {[%clk 0:02:03.2]} 20... hxg6 {[%clk 0:01:52.8]} 21.
Qe2 {[%clk 0:01:54]} 21... Nd3 {[%clk 0:01:38.3]} 22. b3 {[%clk 0:01:37.8]}
22... Bd4 {[%clk 0:01:38.2]} 23. Qc2 {[%clk 0:01:28]} 23... Nb4 {[%clk
0:01:33.2]} 24. Qd2 {[%clk 0:01:20.8]} 24... cxb3 {[%clk 0:01:30.1]} 25. Rab1
{[%clk 0:01:20.4]} 25... Nc2 {[%clk 0:00:49.5]} 26. Rxb3 {[%clk 0:01:14.6]}
26... Ne3 {[%clk 0:00:49.2]} 27. Re1 {[%clk 0:01:07.2]} 27... Nxg2 {[%clk
0:00:48.3]} 28. Kxg2 {[%clk 0:01:06.1]} 28... Qa5 {[%clk 0:00:48.8]} 29. Nb1
{[%clk 0:00:52.3]} 29... Qxa4 {[%clk 0:00:48.4]} 30. Rxb7 {[%clk 0:00:49.8]}
30... Rac8 {[%clk 0:00:48.3]} 31. Re2 {[%clk 0:00:46]} 31... Rc4 {[%clk
0:00:38.2]} 32. f4 {[%clk 0:00:28.4]} 32... Rfc8 {[%clk 0:00:37.4]} 33. Kh3
{[%clk 0:00:10.5]} 33... exf4 {[%clk 0:00:29.9]} 34. gxf4 {[%clk 0:00:06.7]}
34... Rc2 {[%clk 0:00:29.7]} 35. Qd3 {[%clk 0:00:04]} 35... R8c3 {[%clk
0:00:25.8]} 0-1

[Event "*** Titled Tuesday Blitz"]
[Site "Chess.com"]
[Date "2021.04.27"]
[Round "10"]
[White "secretsuperstar7"]
[Black "Chernov_Alexander_A"]
[Result "0-1"]
[WhiteElo "2213"]
[BlackElo "2325"]
[TimeControl "180+1"]
[EndTime "11:53:39 PDT"]
[Termination "Chernov_Alexander_A won on time"]

1. d4 {[%clk 0:03:00.9]} 1... Nf6 {[%clk 0:02:58.7]} 2. c4 {[%clk 0:03:00]} 2...
e6 {[%clk 0:02:58.6]} 3. Nc3 {[%clk 0:02:59.3]} 3... Bb4 {[%clk 0:02:57.6]} 4.
e3 {[%clk 0:02:58]} 4... b6 {[%clk 0:02:57.2]} 5. Nf3 {[%clk 0:02:54.7]} 5...
Bb7 {[%clk 0:02:56.9]} 6. Bd2 {[%clk 0:02:54.5]} 6... O-O {[%clk 0:02:55.5]} 7.
Qc2 {[%clk 0:02:52.3]} 7... Bxc3 {[%clk 0:02:53.2]} 8. Bxc3 {[%clk 0:02:51.7]}
8... Ne4 {[%clk 0:02:53]} 9. Bd3 {[%clk 0:02:48.9]} 9... f5 {[%clk 0:02:52.7]}
10. O-O-O {[%clk 0:02:32.7]} 10... d6 {[%clk 0:02:35.2]} 11. d5 {[%clk
0:02:11.9]} 11... Nxc3 {[%clk 0:02:30.7]} 12. Qxc3 {[%clk 0:02:09.5]} 12... e5
{[%clk 0:02:29.7]} 13. e4 {[%clk 0:02:04.4]} 13... f4 {[%clk 0:02:28.6]} 14. h4
{[%clk 0:02:04.3]} 14... Nd7 {[%clk 0:02:27.3]} 15. Ng5 {[%clk 0:02:01.8]} 15...
Qe7 {[%clk 0:02:15.9]} 16. Be2 {[%clk 0:01:39.3]} 16... Nf6 {[%clk 0:02:02.1]}
17. Bf3 {[%clk 0:01:10.3]} 17... Bc8 {[%clk 0:01:55.6]} 18. Qc2 {[%clk
0:00:59.4]} 18... Bd7 {[%clk 0:01:51.4]} 19. Qe2 {[%clk 0:00:57.2]} 19... c6
{[%clk 0:01:37.7]} 20. g4 {[%clk 0:00:54.9]} 20... cxd5 {[%clk 0:01:33.9]} 21.
cxd5 {[%clk 0:00:54]} 21... Rfc8+ {[%clk 0:01:26.5]} 22. Kb1 {[%clk 0:00:53.7]}
22... Rc5 {[%clk 0:01:25.3]} 23. Rc1 {[%clk 0:00:31.1]} 23... Rac8 {[%clk
0:01:22.8]} 24. Nh3 {[%clk 0:00:29.3]} 24... Bb5 {[%clk 0:01:19.4]} 25. Qd2
{[%clk 0:00:27.3]} 25... Qc7 {[%clk 0:01:13.7]} 26. Rxc5 {[%clk 0:00:25.7]}
26... Qxc5 {[%clk 0:01:13]} 27. g5 {[%clk 0:00:24.3]} 27... Ne8 {[%clk
0:01:01.7]} 28. Bg4 {[%clk 0:00:24]} 28... Rc7 {[%clk 0:00:59.8]} 29. h5 {[%clk
0:00:14.7]} 29... Qc4 {[%clk 0:00:58.1]} 30. a3 {[%clk 0:00:12.1]} 30... Qb3
{[%clk 0:00:56.4]} 31. Be6+ {[%clk 0:00:06.6]} 31... Kf8 {[%clk 0:00:55.1]} 32.
Rc1 {[%clk 0:00:05.9]} 32... Bc4 {[%clk 0:00:51.3]} 33. Rc3 {[%clk 0:00:02.8]}
33... Qa2+ {[%clk 0:00:44.3]} 34. Kc1 {[%clk 0:00:02.9]} 34... b5 {[%clk
0:00:40.9]} 35. Qc2 {[%clk 0:00:02.3]} 35... a5 {[%clk 0:00:32.6]} 36. Kd2
{[%clk 0:00:01.9]} 36... Qa1 {[%clk 0:00:31.9]} 37. b3 {[%clk 0:00:01.7]} 37...
Qf1 {[%clk 0:00:30.4]} 38. bxc4 {[%clk 0:00:01.6]} 38... b4 {[%clk 0:00:29.7]}
39. Rd3 {[%clk 0:00:01.1]} 39... f3 {[%clk 0:00:25.7]} 0-1

[Event "*** Titled Tuesday Blitz"]
[Site "Chess.com"]
[Date "2021.04.27"]
[Round "10"]
[White "WiktoriaPOL"]
[Black "aljado"]
[Result "1-0"]
[WhiteElo "2031"]
[BlackElo "2021"]
[TimeControl "180+1"]
[EndTime "11:53:39 PDT"]
[Termination "WiktoriaPOL won on time"]

1. e4 {[%clk 0:03:00.9]} 1... c5 {[%clk 0:02:58.9]} 2. d4 {[%clk 0:02:57.8]}
2... cxd4 {[%clk 0:02:58]} 3. c3 {[%clk 0:02:57]} 3... e6 {[%clk 0:02:58.3]} 4.
cxd4 {[%clk 0:02:56.6]} 4... d5 {[%clk 0:02:58.6]} 5. e5 {[%clk 0:02:53.7]} 5...
Nc6 {[%clk 0:02:58.3]} 6. Nc3 {[%clk 0:02:52.7]} 6... Qb6 {[%clk 0:02:57.2]} 7.
Nf3 {[%clk 0:02:39.6]} 7... Nge7 {[%clk 0:02:55.5]} 8. Bd3 {[%clk 0:02:39]} 8...
Ng6 {[%clk 0:02:53.5]} 9. h4 {[%clk 0:02:37.2]} 9... Bb4 {[%clk 0:02:45]} 10. h5
{[%clk 0:02:33.7]} 10... Nge7 {[%clk 0:02:44.7]} 11. O-O {[%clk 0:02:26.3]}
11... Bd7 {[%clk 0:02:41.5]} 12. Bg5 {[%clk 0:02:08.2]} 12... h6 {[%clk
0:02:01.5]} 13. Bxe7 {[%clk 0:02:04]} 13... Bxe7 {[%clk 0:02:00.5]} 14. Rc1
{[%clk 0:02:01.5]} 14... O-O {[%clk 0:01:48.1]} 15. b4 {[%clk 0:01:49]} 15...
Bxb4 {[%clk 0:01:32.7]} 16. Na4 {[%clk 0:01:43.5]} 16... Qa5 {[%clk 0:01:29.2]}
17. Nc5 {[%clk 0:01:42.1]} 17... Bxc5 {[%clk 0:01:28]} 18. dxc5 {[%clk 0:01:43]}
18... Qxa2 {[%clk 0:01:19]} 19. Ra1 {[%clk 0:01:24.9]} 19... Qb2 {[%clk
0:01:07.8]} 20. Rb1 {[%clk 0:01:24]} 20... Qc3 {[%clk 0:01:05.8]} 21. Rxb7
{[%clk 0:01:22.3]} 21... Rfd8 {[%clk 0:00:55.1]} 22. Qe2 {[%clk 0:01:00.7]}
22... Qxc5 {[%clk 0:00:46]} 23. g4 {[%clk 0:00:54.2]} 23... Nd4 {[%clk
0:00:38.2]} 24. Nxd4 {[%clk 0:00:53.1]} 24... Qxd4 {[%clk 0:00:37.3]} 25. Rc1
{[%clk 0:00:49.3]} 25... Qf4 {[%clk 0:00:21.7]} 26. Rcc7 {[%clk 0:00:45.6]}
26... Be8 {[%clk 0:00:20.4]} 27. Rxa7 {[%clk 0:00:41.9]} 27... Rxa7 {[%clk
0:00:18.9]} 28. Rxa7 {[%clk 0:00:42.8]} 28... Rc8 {[%clk 0:00:14]} 29. Kg2
{[%clk 0:00:36.3]} 29... f5 {[%clk 0:00:10.9]} 30. exf6 {[%clk 0:00:34.6]} 30...
Qxf6 {[%clk 0:00:09.8]} 31. Ra6 {[%clk 0:00:26.3]} 31... Qg5 {[%clk 0:00:07]}
32. Qxe6+ {[%clk 0:00:16.5]} 32... Kh8 {[%clk 0:00:01.8]} 33. Qxc8 {[%clk
0:00:14.5]} 33... Qe5 {[%clk 0:00:02.1]} 34. Re6 {[%clk 0:00:10.3]} 1-0

[Event "*** Titled Tuesday Blitz"]
[Site "Chess.com"]
[Date "2021.04.27"]
[Round "10"]
[White "Gloomy_Wanderer"]
[Black "scandalgod"]
[Result "0-1"]
[WhiteElo "2724"]
[BlackElo "2610"]
[TimeControl "180+1"]
[EndTime "11:53:40 PDT"]
[Termination "scandalgod won by resignation"]

1. d4 {[%clk 0:03:00.9]} 1... d5 {[%clk 0:02:59.3]} 2. c4 {[%clk 0:02:54.8]}
2... c6 {[%clk 0:02:58.4]} 3. cxd5 {[%clk 0:02:54.8]} 3... cxd5 {[%clk
0:02:56.7]} 4. Nc3 {[%clk 0:02:55.7]} 4... Nf6 {[%clk 0:02:56.9]} 5. Bg5 {[%clk
0:02:55.5]} 5... Ne4 {[%clk 0:02:55.5]} 6. Nxe4 {[%clk 0:02:48.2]} 6... dxe4
{[%clk 0:02:56.4]} 7. Rc1 {[%clk 0:02:48.9]} 7... Nc6 {[%clk 0:02:39.1]} 8. d5
{[%clk 0:02:48.6]} 8... h6 {[%clk 0:02:12.2]} 9. dxc6 {[%clk 0:02:26.4]} 9...
Qxd1+ {[%clk 0:02:07.7]} 10. Kxd1 {[%clk 0:02:25.8]} 10... hxg5 {[%clk
0:02:04.4]} 11. cxb7 {[%clk 0:02:26.7]} 11... Bxb7 {[%clk 0:01:58.4]} 12. e3
{[%clk 0:02:26.8]} 12... a6 {[%clk 0:01:55.7]} 13. Ne2 {[%clk 0:02:22]} 13...
Rd8+ {[%clk 0:01:52.9]} 14. Kc2 {[%clk 0:02:21.9]} 14... Rh6 {[%clk 0:01:49.5]}
15. Nc3 {[%clk 0:02:15.4]} 15... Rf6 {[%clk 0:01:48.7]} 16. Nd1 {[%clk
0:02:07.4]} 16... Rfd6 {[%clk 0:01:47.7]} 17. Bc4 {[%clk 0:01:59.9]} 17... Rd2+
{[%clk 0:01:33.3]} 18. Kb1 {[%clk 0:02:00.1]} 18... e6 {[%clk 0:01:33.5]} 19.
Bb3 {[%clk 0:01:58.8]} 19... Bb4 {[%clk 0:01:28]} 20. a3 {[%clk 0:01:53]} 20...
Ba5 {[%clk 0:01:25.7]} 21. Rc5 {[%clk 0:01:50.7]} 21... Bb6 {[%clk 0:00:55.1]}
22. Rxg5 {[%clk 0:01:50.6]} 22... Kf8 {[%clk 0:00:52.9]} 23. h4 {[%clk
0:01:40.9]} 23... Bc6 {[%clk 0:00:48.4]} 24. h5 {[%clk 0:01:34.4]} 24... Bb5
{[%clk 0:00:42.9]} 25. h6 {[%clk 0:01:14.3]} 25... gxh6 {[%clk 0:00:39.9]} 26.
Rg3 {[%clk 0:00:57]} 26... a5 {[%clk 0:00:29.1]} 27. a4 {[%clk 0:00:54.2]} 27...
Bd3+ {[%clk 0:00:26.3]} 28. Ka2 {[%clk 0:00:53.4]} 28... Bc5 {[%clk 0:00:19.3]}
29. Rxh6 {[%clk 0:00:50.5]} 29... Be2 {[%clk 0:00:14.1]} 30. Nc3 {[%clk
0:00:46]} 30... Bd3 {[%clk 0:00:12.6]} 31. Bxe6 {[%clk 0:00:29.7]} 31... Bb4
{[%clk 0:00:08]} 32. Rh8+ {[%clk 0:00:17.4]} 32... Ke7 {[%clk 0:00:07.6]} 33.
Nd5+ {[%clk 0:00:14.1]} 33... Rxd5 {[%clk 0:00:05.8]} 34. Bxd5 {[%clk
0:00:13.8]} 34... Bc3 {[%clk 0:00:05.8]} 35. Kb3 {[%clk 0:00:12.8]} 35... Bxb2
{[%clk 0:00:06]} 36. Bc4 {[%clk 0:00:13.3]} 36... Bxh8 {[%clk 0:00:05.7]} 0-1

[Event "*** Titled Tuesday Blitz"]
[Site "Chess.com"]
[Date "2021.04.27"]
[Round "10"]
[White "jacky72"]
[Black "sergiochess83"]
[Result "1-0"]
[WhiteElo "2751"]
[BlackElo "2871"]
[TimeControl "180+1"]
[EndTime "11:53:41 PDT"]
[Termination "jacky72 won on time"]

1. d4 {[%clk 0:03:00.9]} 1... Nf6 {[%clk 0:02:59.4]} 2. c4 {[%clk 0:03:01.2]}
2... g6 {[%clk 0:02:59.2]} 3. Nc3 {[%clk 0:03:01.2]} 3... d5 {[%clk 0:02:59.4]}
4. Nf3 {[%clk 0:03:01.2]} 4... Bg7 {[%clk 0:02:59.3]} 5. h4 {[%clk 0:03:01.9]}
5... dxc4 {[%clk 0:02:56.2]} 6. e4 {[%clk 0:03:01.4]} 6... c5 {[%clk 0:02:54.4]}
7. d5 {[%clk 0:03:01.9]} 7... b5 {[%clk 0:02:50.4]} 8. h5 {[%clk 0:03:02.3]}
8... O-O {[%clk 0:02:48.3]} 9. hxg6 {[%clk 0:03:02.7]} 9... fxg6 {[%clk
0:02:46.8]} 10. e5 {[%clk 0:03:03]} 10... Ng4 {[%clk 0:02:43.8]} 11. d6 {[%clk
0:03:03.6]} 11... e6 {[%clk 0:02:01.3]} 12. Rxh7 {[%clk 0:03:02.8]} 12... Rf5
{[%clk 0:01:49.6]} 13. Rh3 {[%clk 0:03:02.5]} 13... Bb7 {[%clk 0:01:32.2]} 14.
Nxb5 {[%clk 0:02:56.9]} 14... Qa5+ {[%clk 0:01:27.1]} 15. Nc3 {[%clk 0:02:57]}
15... Nxe5 {[%clk 0:01:18.6]} 16. Nxe5 {[%clk 0:02:54.1]} 16... Rxe5+ {[%clk
0:01:18.8]} 17. Be3 {[%clk 0:02:46.6]} 17... Nc6 {[%clk 0:01:03.9]} 18. Bxc4
{[%clk 0:02:40.9]} 18... Nd4 {[%clk 0:01:00.2]} 19. Kf1 {[%clk 0:02:36.2]} 19...
Rd8 {[%clk 0:00:58.4]} 20. Qg4 {[%clk 0:02:25.5]} 20... Qb4 {[%clk 0:00:52.8]}
21. Bd3 {[%clk 0:01:14.3]} 21... Nf5 {[%clk 0:00:22.3]} 22. Qxg6 {[%clk
0:01:08.4]} 22... Qxb2 {[%clk 0:00:17]} 23. Rb1 {[%clk 0:00:58.4]} 23... Bxg2+
{[%clk 0:00:13.5]} 24. Kxg2 {[%clk 0:00:48.5]} 24... Qxc3 {[%clk 0:00:09]} 25.
Bxf5 {[%clk 0:00:48.8]} 25... Rxf5 {[%clk 0:00:09]} 26. Qxe6+ {[%clk 0:00:44.2]}
26... Rf7 {[%clk 0:00:09.2]} 27. Rb7 {[%clk 0:00:44.1]} 27... Qf6 {[%clk
0:00:09.3]} 28. Qxf6 {[%clk 0:00:41.2]} 28... Rxf6 {[%clk 0:00:08]} 29. Rg3
{[%clk 0:00:38.7]} 29... Rf7 {[%clk 0:00:08.4]} 30. Rxf7 {[%clk 0:00:35.4]}
30... Kxf7 {[%clk 0:00:09.3]} 31. Bxc5 {[%clk 0:00:35.9]} 31... Be5 {[%clk
0:00:09.3]} 32. Ra3 {[%clk 0:00:25.5]} 32... Ke6 {[%clk 0:00:04.8]} 33. Rxa7
{[%clk 0:00:24]} 33... Kd5 {[%clk 0:00:05.3]} 34. Bb4 {[%clk 0:00:23]} 34...
Bxd6 {[%clk 0:00:04]} 35. Bxd6 {[%clk 0:00:22]} 35... Rxd6 {[%clk 0:00:03.9]}
36. Re7 {[%clk 0:00:21.5]} 36... Ra6 {[%clk 0:00:02.9]} 37. Re2 {[%clk
0:00:21.2]} 37... Ra3 {[%clk 0:00:03.3]} 38. f3 {[%clk 0:00:20.3]} 1-0